bitfinex/quotes_ETHUSD_20251010
["timestamp","ask_amount","ask_price","bid_price","bid_amount"]
[1760102782838,1.915,4371.9,4371.8,2.31026121]
[1760102783025,1.915,4371.9,4371.8,2.88363315]
[1760102783426,0.01,4371.9,4371.8,2.88363315]
[1760102785074,0.01,4371.9,4371.8,2.86075928]
[1760102787233,0.01,4371.9,4371.8,0.1136]
[1760102788045,0.01,4371.9,4371.8,2.40098734]
[1760102788281,0.01,4371.9,4371.8,0.1136]
[1760102789668,1.0919,4371.9,4371.8,0.1136]
[1760102789874,1.0919,4371.9,4371.2,2.28770125]
[1760102789875,1.322,4371.9,4370.3,0.45151351]
[1760102790073,0.6336,4371.6,4371.1,0.1136]
[1760102790257,0.6336,4371.4,4371.1,0.1136]
[1760102790440,0.6336,4371.2,4371.1,0.1136]
[1760102790766,2.5386,4371.2,4370.8,0.1136]
[1760102791160,0.6336,4371.4,4370.8,0.1136]
[1760102791469,0.1136,4371.5,4370.8,0.1136]
[1760102791470,0.6336,4371.2,4370.8,0.1136]
[1760102791642,5.365,4371.3,4370.8,0.1136]
[1760102791643,5.365,4371.3,4370.9,2.28785833]
[1760102791845,5.9986,4371.3,4371.2,2.28770131]
[1760102792057,5.365,4371.3,4371.2,2.28770131]
[1760102792258,5.9986,4371.3,4371.2,2.31057832]
[1760102792997,0.01,4371.9,4371.5,2.28750149]
[1760102793198,3.46,4371.8,4371.4,2.28755802]
[1760102793500,0.6336,4371.7,4371.6,2.28749199]
[1760102793800,0.6336,4371.7,4371.5,2.31039987]
[1760102793981,0.6336,4371.7,4371.6,0.1136]
[1760102795083,0.6336,4371.7,4371.6,2.40109199]
[1760102795283,0.01,4371.9,4371.6,2.40105914]
[1760102795501,3.46,4371.8,4371.7,2.31031405]
[1760102795855,0.01,4371.9,4371.8,2.28738734]
[1760102796050,0.01,4371.9,4371.8,2.40098734]
[1760102796272,0.01,4371.9,4371.8,2.42386121]
[1760102797679,0.01,4371.9,4371.8,2.40098734]
[1760102797886,0.01,4371.9,4371.8,2.89406939]
[1760102798656,0.01,4371.9,4371.8,4.81406939]
[1760102809275,0.01,4371.9,4371.8,2.89406939]
[1760102809475,0.01,4371.9,4371.8,0.1136]
[1760102809680,0.01,4371.9,4371.8,2.40098734]
[1760102810803,0.4653,4371.9,4371.8,2.40098734]
[1760102811299,0.4653,4371.9,4371.8,0.1136]
[1760102811300,0.01,4371.9,4371.8,0.1136]
[1760102811511,0.4653,4371.9,4371.8,2.40098734]
[1760102813104,0.4653,4371.9,4371.8,0.1136]
[1760102813105,1.0989,4371.9,4371.8,0.1136]
[1760102813403,1.46275,4371.9,4371.8,0.1136]
[1760102813614,0.6436,4371.9,4371.8,0.1136]
[1760102813966,1.0989,4371.9,4371.8,0.1136]
[1760102814981,0.4645,4371.9,4371.8,0.1136]
[1760102815211,0.4665,4371.9,4371.8,0.1136]
[1760102815364,0.0112,4371.9,4371.8,2.40098734]
[1760102816172,0.6448,4371.9,4371.8,0.1136]
[1760102816413,1.35518,4371.9,4371.5,2.28750931]
[1760102816611,0.6336,4371.7,4371.5,2.28750931]
[1760102816908,0.4553,4371.6,4371.3,0.001]
[1760102817206,0.6336,4371.7,4371.3,0.001]
[1760102817409,0.4612,4371.6,4371.3,0.001]
[1760102817779,0.4612,4371.6,4371.3,2.28863656]
[1760102818112,0.6336,4371.7,4371.3,2.28863656]
[1760102818272,0.6336,4371.7,4371.4,0.02287596]
[1760102818611,0.6336,4371.7,4371.3,2.2886476]
[1760102818913,0.6336,4371.7,4371.3,0.001]
[1760102819294,0.6336,4371.7,4371.5,2.28753822]
[1760102819487,0.6448,4371.9,4371.5,2.28753822]
[1760102819685,3.457,4371.6,4371.4,2.28757925]
[1760102819884,3.457,4371.6,4371.3,0.001]
[1760102820092,3.457,4371.6,4371.5,2.28754432]
[1760102820294,0.0112,4371.9,4371.5,0.45761907]
[1760102820485,0.0112,4371.9,4371.4,0.02287596]
[1760102820486,0.0112,4371.9,4371.8,2.28738734]
[1760102821591,0.0112,4371.9,4371.8,2.31026121]
[1760102823824,0.0112,4371.9,4371.3,0.001]
[1760102824318,0.0112,4371.9,4371.4,2.28759665]
[1760102824634,0.4612,4371.8,4371.3,0.001]
[1760102824836,0.0112,4371.9,4371.3,0.001]
[1760102824837,1.43413251,4371.7,4371.3,0.001]
[1760102825010,0.6336,4371.5,4371.3,0.001]
[1760102825197,1.905,4371.4,4371.3,0.001]
[1760102825726,1.905,4371.4,4371.3,2.28864898]
[1760102825930,1.905,4371.4,4371.3,0.001]
[1760102826296,3.459,4371.4,4371.3,2.40224898]
[1760102826928,0.6448,4371.9,4371.3,2.40224898]
[1760102826929,0.0112,4371.9,4371.6,2.28744165]
[1760102827240,5.363,4371.8,4371.7,2.28743966]
[1760102827599,5.363,4371.8,4371.7,2.40103966]
[1760102827916,5.363,4371.8,4371.7,0.1136]
[1760102828426,0.6336,4371.7,4371.3,0.001]
[1760102828628,0.6336,4371.7,4371.4,0.1136]
[1760102829028,0.4612,4371.6,4371.4,0.1136]
[1760102829622,0.6336,4371.4,4371.3,0.001]
[1760102829825,2.92119665,4371.4,4371.3,0.001]
[1760102830016,3.38239665,4371.4,4371.3,0.001]
[1760102830211,1.0948,4371.4,4371.3,0.001]
[1760102830644,3.38239665,4371.4,4371.3,0.001]
[1760102830809,1.0948,4371.4,4371.3,0.001]
[1760102831801,0.6336,4371.6,4371.3,0.001]
[1760102832042,5.364,4371.5,4371.3,0.001]
[1760102832652,0.6336,4371.7,4371.3,0.001]
[1760102832841,5.364,4371.4,4371.3,0.001]
[1760102833013,5.9976,4371.4,4371.3,0.001]
[1760102833360,6.4588,4371.4,4371.3,0.001]
[1760102834121,8.74639665,4371.4,4371.3,0.001]
[1760102834522,6.4588,4371.4,4371.3,0.001]
[1760102834728,8.74639665,4371.4,4371.3,0.001]
[1760102835505,10.66639665,4371.4,4371.3,0.001]
[1760102835908,6.4588,4371.4,4371.3,0.001]
[1760102836435,5.364,4371.4,4371.3,0.001]
[1760102837023,5.8244,4371.4,4371.3,0.001]
[1760102838334,8.74559665,4371.4,4371.3,0.001]
[1760102839552,6.458,4371.4,4371.3,0.001]
[1760102839771,8.74559665,4371.4,4371.3,0.001]
[1760102841262,8.69559665,4371.4,4371.3,0.001]
[1760102841971,6.408,4371.4,4371.3,0.001]
[1760102842362,8.69559665,4371.4,4371.3,0.001]
[1760102843398,10.61559665,4371.4,4371.3,0.001]
[1760102847487,25.10675605,4371.4,4371.3,0.001]
[1760102849086,19.79355605,4371.4,4371.3,0.001]
[1760102849384,16.62039665,4371.4,4371.3,0.001]
[1760102851057,31.11155605,4371.4,4371.3,0.001]
[1760102852600,33.33862305,4371.4,4371.3,0.001]
[1760102852755,61.11355605,4371.4,4371.3,0.001]
[1760102852955,33.13665805,4371.4,4371.3,0.001]
[1760102853160,31.11455605,4371.4,4371.3,0.001]
[1760102853594,29.20955605,4371.4,4371.3,0.001]
[1760102853782,31.11455605,4371.4,4371.3,0.001]
[1760102857056,40.90846105,4371.4,4371.3,0.001]
[1760102857755,41.40126806,4371.4,4371.3,0.001]
[1760102857951,45.70775706,4371.4,4371.3,0.001]
[1760102858192,44.77811705,4371.4,4371.3,0.001]
[1760102858491,2.92145833,4370.9,4370.8,0.001]
[1760102858694,8.30045833,4370.9,4370.8,0.001]
[1760102858992,9.24208795,4370.9,4370.8,0.001]
[1760102859175,32.20797895,4370.9,4370.8,0.001]
[1760102859583,0.6336,4370.7,4370.3,0.001]
[1760102859791,19.33287948,4370.4,4370.3,0.001]
[1760102859992,4.84172008,4370.4,4370.3,0.001]
[1760102860299,10.65442008,4370.4,4370.3,0.001]
[1760102865795,10.77109284,4370.4,4370.3,0.001]
[1760102866211,10.65442008,4370.4,4370.3,0.001]
[1760102869620,7.19542008,4370.4,4370.3,0.001]
[1760102869923,5.29042008,4370.4,4370.3,0.001]
[1760102870120,16.61142008,4370.4,4370.3,0.001]
[1760102870297,2.28808091,4370.5,4370.3,0.001]
[1760102870618,7.8453,4370.4,4370.3,0.001]
[1760102870817,10.76702008,4370.4,4370.3,0.001]
[1760102871325,10.13342008,4370.4,4370.3,0.001]
[1760102871508,10.76702008,4370.4,4370.3,0.001]
[1760102872188,0.1144,4370.4,4370.3,0.001]
[1760102872389,5.365,4370.4,4370.3,0.001]
[1760102873821,0.1136,4370.7,4370.3,0.001]
[1760102873988,2.06324514,4374.1,4370.3,0.001]
[1760102873989,5.365,4370.6,4370.4,2.28812008]
[1760102874189,5.365,4370.5,4370.4,2.28812008]
[1760102875000,2.73553494,4371.4,4370.8,2.28788091]
[1760102875001,0.002,4371.4,4370.8,2.28788091]
[1760102875321,5.365,4371.3,4370.9,2.40140851]
[1760102875493,5.365,4371.3,4370.9,2.87034723]
[1760102875694,0.002,4371.4,4370.9,0.58253872]
[1760102875912,5.365,4371.3,4370.9,0.58253872]
[1760102876104,0.002,4371.4,4370.9,2.87035878]
[1760102876300,5.365,4371.3,4370.9,2.87035878]
[1760102876591,5.365,4371.3,4370.9,0.58253872]
[1760102876902,0.6336,4371.1,4370.9,0.1136]
[1760102877221,2.92150228,4370.9,4370.3,0.001]
[1760102877409,3.459,4370.8,4370.3,0.001]
[1760102877615,5.74693664,4370.8,4370.3,0.001]
[1760102877815,1.0986,4370.7,4370.3,0.001]
[1760102878017,3.459,4370.6,4370.3,0.001]
[1760102878213,1.906,4370.5,4370.3,0.001]
[1760102878554,3.459,4370.4,4370.3,0.001]
[1760102878824,5.365,4370.4,4370.3,0.001]
[1760102880229,0.2383,4371.9,4370.3,0.001]
[1760102880530,0.6336,4370.9,4370.3,0.001]
[1760102880692,0.6336,4370.7,4370.3,0.001]
[1760102880897,2.92157001,4370.7,4370.3,0.001]
[1760102881196,3.924,4370.6,4370.3,0.001]
[1760102881531,2.28812008,4370.4,4370.3,0.001]
[1760102881829,5.74712008,4370.4,4370.3,0.001]
[1760102882128,6.21212008,4370.4,4370.3,0.001]
[1760102882944,2.28781895,4371.0,4370.3,0.001]
[1760102882945,1.92,4371.3,4370.3,0.001]
[1760102883149,0.6336,4370.5,4370.3,0.001]
[1760102883447,5.9976,4370.4,4370.3,0.001]
[1760102883613,8.75072008,4370.4,4370.3,0.001]
[1760102884349,6.4626,4370.4,4370.3,0.001]
[1760102884946,5.9976,4370.4,4370.3,0.001]
[1760102885337,0.465,4370.8,4370.3,0.001]
[1760102885642,1.92,4370.6,4370.3,0.001]
[1760102885849,1.905,4370.7,4370.3,0.001]
[1760102886085,3.459,4370.5,4370.3,2.28916173]
[1760102886247,3.459,4370.5,4370.3,0.001]
[1760102887047,1.0986,4370.4,4370.3,0.001]
[1760102887569,0.6336,4370.4,4370.3,0.001]
[1760102887951,3.38672008,4370.4,4370.3,0.001]
[1760102888462,3.50112008,4370.4,4370.3,0.001]
[1760102891128,8.86612008,4370.4,4370.3,0.001]
[1760102891327,10.78612008,4370.4,4370.3,0.001]
[1760102892634,2.0344,4370.4,4370.3,0.001]
[1760102892828,8.033,4370.4,4370.3,0.001]
[1760102893027,8.498,4370.4,4370.3,0.001]
[1760102893942,8.033,4370.4,4370.3,0.001]
[1760102894559,10.32112008,4370.4,4370.3,0.001]
[1760102894755,10.78612008,4370.4,4370.3,0.001]
[1760102897346,8.498,4370.4,4370.3,0.001]
[1760102898272,10.78612008,4370.4,4370.3,0.001]
[1760102899973,8.498,4370.4,4370.3,0.001]
[1760102900374,2.668,4370.4,4370.3,0.001]
[1760102900574,8.498,4370.4,4370.3,0.001]
[1760102900765,10.78612008,4370.4,4370.3,0.001]
[1760102901278,6.127,4370.4,4370.3,0.001]
[1760102901581,10.78612008,4370.4,4370.3,0.001]
[1760102901876,8.498,4370.4,4370.3,0.001]
[1760102902351,10.78612008,4370.4,4370.3,0.001]
[1760102903338,10.78532008,4370.4,4370.3,0.001]
[1760102904184,8.4972,4370.4,4370.3,0.001]
[1760102905293,0.1144,4370.4,4370.3,0.001]
[1760102905458,2.707,4370.4,4370.3,0.1154]
[1760102905655,2.707,4370.4,4370.3,2.64392838]
[1760102905856,0.002,4370.8,4370.5,2.28806088]
[1760102906057,5.365,4370.7,4370.5,2.28806088]
[1760102906453,5.365,4370.6,4370.4,2.2881049]
[1760102907084,3.459,4370.5,4370.4,2.2881049]
[1760102907287,5.365,4370.5,4370.4,2.78360257]
[1760102907656,0.002,4370.8,4370.4,0.49549767]
[1760102907861,0.002,4370.8,4370.3,0.1154]
[1760102907862,5.365,4370.7,4370.3,0.1154]
[1760102908188,5.365,4370.7,4370.4,2.28811709]
[1760102908360,5.365,4370.7,4370.3,2.40357133]
[1760102908556,0.4611,4370.8,4370.3,2.40357133]
[1760102908761,5.364,4370.7,4370.3,0.1154]
[1760102908961,5.364,4370.7,4370.3,2.4035702]
[1760102909758,0.4611,4370.8,4370.3,2.4035702]
[1760102910085,5.364,4370.7,4370.3,2.4035702]
[1760102910871,5.364,4370.7,4370.3,0.1154]
[1760102911186,5.364,4370.6,4370.3,0.1154]
[1760102912291,5.364,4370.6,4370.5,2.28806772]
[1760102912680,5.364,4370.6,4370.4,2.28810539]
[1760102912996,3.459,4370.5,4370.4,2.28810539]
[1760102913201,3.459,4370.5,4370.3,0.1154]
[1760102913202,5.364,4370.5,4370.3,0.1154]
[1760102913613,0.4591,4370.4,4370.3,0.1154]
[1760102914672,0.4591,4370.4,4370.3,0.001]
[1760102916569,0.1591,4370.4,4370.3,0.001]
[1760102916791,7.65208921,4370.5,4370.3,0.001]
[1760102917393,2.92172008,4370.4,4370.3,0.001]
[1760102918320,0.6336,4370.4,4370.3,0.001]
[1760102918648,5.364,4370.5,4370.3,0.001]
[1760102918649,0.6336,4370.5,4370.3,0.001]
[1760102918925,0.002,4370.8,4370.3,0.001]
[1760102918926,0.6356,4370.8,4370.3,0.001]
[1760102919127,2.5536,4370.6,4370.3,0.001]
[1760102919334,3.458,4370.5,4370.3,0.001]
[1760102921187,0.002,4370.8,4370.3,0.26424016]
[1760102921394,5.363,4370.7,4370.6,2.40161537]
[1760102922035,5.363,4370.7,4370.6,0.1136]
[1760102922341,5.8221,4370.7,4370.4,0.1144]
[1760102922490,0.4591,4370.6,4370.4,0.1144]
[1760102922690,3.458,4370.5,4370.4,0.1144]
[1760102924318,3.458,4370.5,4370.4,2.40252008]
[1760102924519,3.458,4370.5,4370.4,2.87169937]
[1760102924912,0.002,4370.8,4370.4,0.88387929]
[1760102925108,0.002,4370.8,4370.7,2.28796302]
[1760102925297,5.3642,4370.8,4370.7,2.40156302]
[1760102925499,5.3642,4370.8,4370.7,2.70186302]
[1760102926230,3.4592,4370.8,4370.7,2.70186302]
[1760102926432,5.3642,4370.8,4370.7,2.70186302]
[1760102926730,5.3642,4370.8,4370.7,3.20314076]
[1760102928137,0.0012,4370.8,4370.7,3.20314076]
[1760102928318,0.5472,4370.8,4370.7,3.20314076]
[1760102928704,3.4302,4370.8,4370.7,3.20314076]
[1760102929268,3.8964,4370.8,4370.3,0.001]
[1760102929542,0.6336,4370.4,4370.3,0.001]
[1760102929843,8.30372008,4370.4,4370.3,0.001]
[1760102930001,8.76992008,4370.4,4370.3,0.001]
[1760102930513,23.46034626,4370.4,4370.3,0.001]
[1760102932834,22.82674626,4370.4,4370.3,0.001]
[1760102935233,23.46034626,4370.4,4370.3,0.001]
[1760102936537,22.82674626,4370.4,4370.3,0.001]
[1760102938066,23.46034626,4370.4,4370.3,0.001]
[1760102939262,4.67432008,4370.4,4370.3,0.001]
[1760102939458,7.7532,4370.4,4370.3,0.001]
[1760102939670,2.3862,4370.4,4370.3,0.001]
[1760102939885,7.288,4370.4,4370.3,0.001]
[1760102940088,7.65612008,4370.4,4370.3,0.001]
[1760102940272,5.8239,4370.4,4370.3,0.001]
[1760102940477,10.78002008,4370.4,4370.3,0.001]
[1760102940684,8.86002008,4370.4,4370.3,0.001]
[1760102941101,10.78002008,4370.4,4370.3,0.001]
[1760102943484,5.41202008,4370.4,4370.3,0.001]
[1760102943685,10.78002008,4370.4,4370.3,0.001]
[1760102944308,4.95612008,4370.4,4370.3,0.001]
[1760102944517,10.32312008,4370.4,4370.3,0.001]
[1760102944885,10.77902008,4370.4,4370.3,0.001]
[1760102946424,4.95612008,4370.4,4370.3,0.001]
[1760102946627,10.77902008,4370.4,4370.3,0.001]
[1760102947389,10.77822008,4370.4,4370.3,0.001]
[1760102954648,2.6672,4370.4,4370.3,0.001]
[1760102954850,8.0322,4370.4,4370.3,0.001]
[1760102955064,10.32032008,4370.4,4370.3,0.001]
[1760102955629,7.285,4370.4,4370.3,0.001]
[1760102956345,9.57312008,4370.4,4370.3,0.001]
[1760102957362,10.02902008,4370.4,4370.3,0.001]
[1760102957764,10.66262008,4370.4,4370.3,0.001]
[1760102957969,10.77702008,4370.4,4370.3,0.001]
[1760102959968,8.4889,4370.4,4370.3,0.001]
[1760102960169,3.826,4370.4,4370.3,0.001]
[1760102960367,0.1148,4370.8,4370.3,0.001]
[1760102960567,5.9986,4370.7,4370.3,0.001]
[1760102961270,5.365,4370.6,4370.3,0.001]
[1760102961485,3.459,4370.5,4370.4,0.2426548]
[1760102961854,3.459,4370.5,4370.4,0.3570548]
[1760102963451,3.459,4370.5,4370.4,0.1144]
[1760102964482,5.74706772,4370.5,4370.4,0.1144]
[1760102964890,3.459,4370.5,4370.4,0.1144]
[1760102965188,3.461,4370.5,4370.4,0.1144]
[1760102965395,3.9169,4370.5,4370.4,0.1144]
[1760102965575,3.9169,4370.5,4370.3,0.001]
[1760102965576,8.68791813,4370.5,4370.3,0.001]
[1760102965785,0.4559,4370.4,4370.3,0.001]
[1760102965969,5.74907971,4370.5,4370.3,0.001]
[1760102966488,3.461,4370.5,4370.3,0.001]
[1760102969280,5.74906871,4370.5,4370.3,0.001]
[1760102969481,5.74826871,4370.5,4370.3,0.001]
[1760102970180,2.76072008,4370.4,4370.3,0.001]
[1760102970407,3.39432008,4370.4,4370.3,0.001]
[1760102975505,2.76072008,4370.4,4370.3,0.001]
[1760102981158,14.71532008,4370.4,4370.3,0.001]
[1760102982146,6.85332008,4370.4,4370.3,0.001]
[1760102982356,8.75932008,4370.4,4370.3,0.001]
[1760102990691,3.39432008,4370.4,4370.3,0.001]
[1760102990978,0.002,4370.5,4370.3,0.001]
[1760102991163,0.002,4370.5,4370.4,4.20812008]
[1760102991480,0.0012,4370.5,4370.4,2.28812008]
[1760102992382,0.0012,4370.5,4370.4,2.58842008]
[1760102993264,0.0012,4370.5,4370.4,2.61130128]
[1760102993470,0.0012,4370.5,4370.4,2.58842008]
[1760102993670,0.0012,4370.5,4370.4,3.09907719]
[1760102993979,0.0012,4370.5,4370.4,2.79877719]
[1760102994371,0.0012,4370.5,4370.4,2.28812008]
[1760102994876,0.0012,4370.5,4370.3,0.25281418]
[1760102995079,0.0012,4370.5,4370.3,0.001]
[1760102995278,0.4345,4370.4,4370.3,0.001]
[1760102996945,3.46,4370.4,4370.3,0.001]
[1760102997145,5.365,4370.4,4370.3,0.001]
[1760102998582,5.365,4370.4,4370.3,2.28917243]
[1760102998783,5.365,4370.4,4370.3,0.001]
[1760102998946,0.0012,4370.5,4370.4,2.28812008]
[1760102999153,2.0632,4370.5,4370.4,2.58842008]
[1760102999560,0.0012,4370.5,4370.4,2.58842008]
[1760103000081,0.0082,4370.5,4370.4,4.50842008]
[1760103000286,0.0012,4370.5,4370.4,4.50842008]
[1760103000484,0.0012,4370.5,4370.4,10.84783804]
[1760103000672,0.0012,4370.5,4370.4,8.92783804]
[1760103000876,0.0012,4370.5,4370.4,10.84783804]
[1760103001078,1e-08,4370.8,4370.7,2.28796302]
[1760103001253,0.01,4372.9,4371.2,2.28770131]
[1760103001452,0.01,4372.9,4371.3,2.28764898]
[1760103001453,0.0212,4371.9,4371.3,2.28764898]
[1760103001654,0.0212,4371.9,4371.8,2.28738734]
[1760103002004,0.0092,4371.9,4371.8,7.92414456]
[1760103002153,0.0092,4371.9,4371.8,8.19957069]
[1760103002480,1e-08,4371.9,4371.8,10.11957069]
[1760103002700,1e-08,4371.9,4371.8,11.36027405]
[1760103002930,1e-08,4371.9,4371.8,5.7463907]
[1760103004218,1e-08,4371.9,4371.8,5.4480907]
[1760103004519,1e-08,4371.9,4371.5,2.28751497]
[1760103004683,1e-08,4371.9,4371.2,0.75584779]
[1760103005013,1e-08,4371.9,4371.2,0.2983]
[1760103005217,1e-08,4371.9,4371.3,2.28760299]
[1760103005580,3.462,4371.8,4371.4,0.32117596]
[1760103005787,1.905,4371.7,4371.5,2.28753629]
[1760103006112,2.3627,4371.7,4370.8,2.28788776]
[1760103006279,1.905,4371.7,4370.9,0.22878878]
[1760103006524,1.905,4371.7,4370.4,1.92]
[1760103006728,1e-08,4371.9,4371.5,2.28753867]
[1760103006930,1e-08,4371.9,4371.8,2.28738734]
[1760103007462,1e-08,4371.9,4371.8,2.60856121]
[1760103007662,1e-08,4371.9,4371.8,2.58568734]
[1760103007872,1e-08,4371.9,4371.8,0.48731496]
[1760103008032,1e-08,4371.9,4370.3,0.001]
[1760103008376,1e-08,4371.9,4371.1,0.2983]
[1760103008545,1e-08,4371.9,4371.6,2.287484]
[1760103008863,1e-08,4371.9,4371.7,2.28740838]
[1760103009066,1e-08,4371.9,4371.1,0.2983]
[1760103009231,1e-08,4371.9,4370.3,0.001]
[1760103009567,2.97423091,4371.8,4370.4,0.55705668]
[1760103009771,0.6336,4371.6,4370.4,2.54686947]
[1760103010069,0.6336,4371.3,4370.4,0.25875668]
[1760103010363,0.6336,4370.4,4370.3,0.001]
[1760103010751,4.0996,4370.4,4370.3,0.001]
[1760103010932,8.29272008,4370.4,4370.3,0.001]
[1760103011131,8.75042008,4370.4,4370.3,0.001]
[1760103011332,2.28832665,4370.1,4369.5,0.1144]
[1760103011551,2.28834386,4370.0,4369.5,0.1144]
[1760103011755,0.4577,4370.0,4369.5,0.1144]
[1760103011962,0.4577,4369.9,4369.5,0.1144]
[1760103012381,1.0913,4369.8,4368.6,2.28901283]
[1760103012534,3.466,4369.7,4369.1,0.1144]
[1760103012735,3.466,4369.7,4369.2,2.28874404]
[1760103012939,3.466,4369.7,4369.1,0.1144]
[1760103012940,0.4577,4369.6,4369.1,0.1144]
[1760103013233,1.905,4369.5,4369.1,0.1144]
[1760103013443,1.905,4369.5,4369.1,2.40318417]
[1760103013767,1.9042,4369.5,4369.4,2.28864374]
[1760103014072,0.01,4369.9,4369.8,2.28843425]
[1760103014270,0.586,4369.9,4369.8,2.31131859]
[1760103014431,0.586,4369.9,4369.8,2.70113425]
[1760103014636,0.586,4369.9,4369.8,2.40283425]
[1760103014855,0.586,4369.9,4369.8,2.87196977]
[1760103015969,4.234,4369.9,4369.8,2.87196977]
[1760103016156,3.478,4369.9,4369.8,3.17026977]
[1760103016356,0.01,4369.9,4369.8,3.17026977]
[1760103016860,2.338,4369.9,4369.8,3.17026977]
[1760103017049,2.338,4369.9,4369.8,2.87196977]
[1760103017372,2.338,4369.9,4369.8,0.1144]
[1760103017575,2.338,4369.9,4369.8,2.40283425]
[1760103017872,2.338,4369.9,4369.8,0.1144]
[1760103018074,3.4293,4369.9,4369.8,0.1144]
[1760103018273,2.92203977,4369.8,4368.2,2.28927246]
[1760103018475,0.6336,4369.8,4369.0,2.28883692]
[1760103019277,2.92204092,4369.8,4368.9,2.28890561]
[1760103019452,2.28849045,4369.7,4368.9,2.28890561]
[1760103019651,0.6336,4369.8,4369.3,2.28869461]
[1760103019875,0.4577,4369.7,4368.3,0.55705725]
[1760103020171,2.28868727,4369.4,4368.5,2.2891069]
[1760103020372,0.6336,4369.3,4367.9,0.2983]
[1760103020573,0.4577,4369.2,4367.8,0.001]
[1760103020743,6.0056,4369.1,4367.8,0.001]
[1760103021140,0.6336,4369.5,4367.8,0.02389482]
[1760103021376,0.01,4369.9,4367.9,0.2983]
[1760103021541,1.905,4369.4,4369.0,2.28881352]
[1760103021747,1.905,4369.4,4369.1,2.28875948]
[1760103022076,0.01,4369.9,4369.7,2.28843656]
[1760103022404,1.905,4369.5,4369.4,2.28864374]
[1760103022690,0.01,4369.9,4369.8,2.28843425]
[1760103022847,5.383,4369.9,4369.8,2.28843425]
[1760103023193,0.01,4369.9,4369.8,2.28843425]
[1760103023343,5.383,4369.9,4369.8,2.28843425]
[1760103023869,0.01,4369.9,4369.4,0.48756733]
[1760103024054,0.01,4369.9,4368.6,1.92]
[1760103024055,5.372,4369.8,4369.7,2.28848662]
[1760103024580,5.372,4369.8,4369.7,2.58678662]
[1760103024987,5.372,4369.8,4369.7,2.28848662]
[1760103025566,5.372,4369.8,4369.7,2.58678662]
[1760103025767,0.01,4369.9,4369.8,2.28843425]
[1760103025768,1e-08,4369.9,4369.8,2.28843425]
[1760103026014,1e-08,4369.9,4369.8,5.22311242]
[1760103028300,1e-08,4369.9,4369.8,5.33751242]
[1760103032275,1e-08,4370.9,4370.3,2.28812572]
[1760103032474,0.002,4372.8,4371.8,2.28734073]
[1760103032671,0.002,4372.8,4372.3,4.28382576]
[1760103032871,0.002,4372.8,4371.6,18.15250417]
[1760103032872,1.905,4372.7,4371.7,0.0767]
[1760103033073,0.4473,4372.3,4371.7,2.28741729]
[1760103033274,1.838,4372.2,4371.0,0.0767]
[1760103033477,0.002,4372.8,4371.4,14.68550417]
[1760103033676,2.832,4372.6,4372.3,2.28712576]
[1760103033929,2.832,4372.6,4372.3,2.76743003]
[1760103034103,3.469,4372.7,4372.3,3.06573003]
[1760103034418,0.002,4372.8,4372.3,3.06573003]
[1760103034579,3.469,4372.7,4372.3,3.06573003]
[1760103035175,0.002,4372.8,4372.3,3.04285878]
[1760103035375,3.469,4372.6,4372.3,0.75573302]
[1760103035580,3.469,4372.6,4372.3,0.2983]
[1760103035804,0.0012,4372.4,4372.3,2.28712576]
[1760103035977,0.0012,4372.4,4371.6,0.2983]
[1760103036541,5.373,4372.3,4372.2,2.28717807]
[1760103036817,5.373,4372.3,4371.6,2.58578931]
[1760103036818,5.373,4372.3,4371.6,2.58574615]
[1760103037022,0.0012,4372.4,4370.5,0.45590229]
[1760103037023,5.373,4372.2,4370.5,0.45590229]
[1760103037318,5.373,4372.2,4370.6,0.2983]
[1760103037613,5.8213,4372.1,4370.7,2.28796302]
[1760103037828,5.8213,4372.1,4371.3,2.28762763]
[1760103038035,5.8213,4372.1,4370.7,0.02287963]
[1760103038232,3.469,4372.0,4370.7,0.02287963]
[1760103038533,5.005,4371.9,4371.4,2.28759077]
[1760103038830,5.005,4371.9,4371.5,2.28753041]
[1760103039132,5.005,4371.9,4371.6,2.28748079]
[1760103039294,0.002,4372.3,4371.6,2.28748079]
[1760103039500,3.469,4371.8,4370.9,2.28785833]
[1760103039700,3.469,4371.8,4371.7,2.28743966]
[1760103039900,0.002,4372.3,4371.0,2.28780599]
[1760103040133,5.375,4372.2,4371.5,2.28751717]
[1760103040433,5.375,4372.2,4370.9,2.28785833]
[1760103040601,5.375,4372.2,4371.7,2.28742691]
[1760103040803,5.375,4372.2,4371.8,2.28738734]
[1760103041032,5.375,4372.2,4371.6,2.31035692]
[1760103041240,5.375,4372.2,4371.5,2.28753475]
[1760103041540,5.375,4372.2,4371.1,0.2983]
[1760103041541,5.375,4372.1,4371.1,2.28771682]
[1760103041843,5.375,4372.1,4371.4,2.28759567]
[1760103042012,5.375,4372.1,4370.6,0.2983]
[1760103042219,0.6336,4372.0,4371.7,0.1136]
[1760103042403,0.6336,4371.5,4370.9,0.1136]
[1760103042738,1.905,4371.4,4370.9,0.1136]
[1760103042956,0.6336,4371.5,4370.9,2.40143866]
[1760103042957,5.375,4371.3,4370.9,2.40143866]
[1760103043121,0.6336,4371.5,4370.9,2.40143866]
[1760103043317,5.375,4371.4,4370.9,0.1136]